[Event "Reykjavik Open 2022"]
[Site "Reykjavik"]
[Date "2022.04.08"]
[Round "4.37"]
[White "Lim, Zhuo Ren"]
[Black "Arnalds, Stefan"]
[Result "1-0"]
[ECO "E60"]
[WhiteElo "2317"]
[BlackElo "1902"]
[Annotator "RC"]
[PlyCount "70"]
[EventDate "2022.04.06"]
[EventCountry "ISL"]
[SourceTitle "playchess.com"]
[Source "ChessBase"]
[SourceQuality "1"]
[TimeControl "40/5400+30:1800+30"]

1. d4 {[%emt 0:00:03]} Nf6 {[%emt 0:18:14]} 2. c4 {[%emt 0:00:17]} g6 {[%emt 0:00:13]} 3. Nf3 {[%emt 0:00:24]} Bg7 {[%emt 0:00:12]} 4. g3 {[%emt 0:00:17]} O-O {[%emt 0:00:08]} 5. Bg2 {[%emt 0:00:17]} c5 {[%emt 0:00:17]} 6. O-O {[%emt 0:00:59]} cxd4 {[%emt 0:00:17]} 7. Nxd4 {[%emt 0:00:09]} Qc7 {[%emt 0:26:31]} 8. Nb5 {[%emt 0:50:03]} Qa5 {[%emt 0:23:03]} 9. Bd2 {[%emt 0:03:48]} Qd8 {[%emt 0:03:20]} 10. N1c3 {[%emt 0:02:07]} a6 {[%emt 0:07:17]} 11. Na3 {[%emt 0:00:39]} d6 {[%emt 0:01:18]} 12. Rc1 {[%emt 0:00:26]} Nc6 {[%emt 0:01:43]} 13. h3 {[%emt 0:06:47]} Be6 {[%emt 0:02:04]} 14. Be3 {[%emt 0:00:25]} Rb8 {[%emt 0:02:09]} 15. Qd2 {[%emt 0:00:39]} Qd7 {[%emt 0:01:45]} 16. Kh2 {[%emt 0:00:12]} Ne5 {[%emt 0:05:10]} 17. Nd5 {[%emt 0:01:27]} b5 {[%emt 0:01:20]} 18. Nxf6+ {[%emt 0:04:08]} Bxf6 {[%emt 0:01:47]} 19. cxb5 {[%emt 0:00:03]} axb5 {[%emt 0:00:15]} 20. b3 {[%emt 0:00:13]} b4 {[%emt 0:02:13]} 21. Nc2 {[%emt 0:00:25]} Nc6 {[%emt 0:00:45]} 22. Bxc6 {[%emt 0:02:07]} Qxc6 {[%emt 0:00:02]} 23. Nxb4 {[%emt 0:00:11]} Qb5 {[%emt 0:01:02]} 24. Nc6 {[%emt 0:00:25]} Qh5 {[%emt 0:00:35]} 25. Nxb8 {[%emt 0:04:40]} Bxh3 {[%emt 0:00:47]} 26. Rh1 {[%emt 0:00:10]} Rxb8 {[%emt 0:00:25]} 27. Kg1 {[%emt 0:00:12]} Qg4 {[%emt 0:00:30]} 28. Rc4 {[%emt 0:01:19]} Qf5 {[%emt 0:00:29]} 29. f3 {[%emt 0:03:34]} h5 {[%emt 0:00:04]} 30. Kf2 {[%emt 0:00:18]} Qd7 {[%emt 0:01:01]} 31. Rhc1 {[%emt 0:00:26]} d5 {[%emt 0:00:31]} 32. Rc7 {[%emt 0:00:29]} Qd6 {[%emt 0:00:28]} 33. R1c6 {[%emt 0:00:50]} Qe5 {[%emt 0:00:18]} 34. Bf4 {[%emt 0:00:34]} Qf5 {[%emt 0:00:44]} 35. Qd3 {[%emt 0:00:55]} Qxd3 {[%emt 0:01:03]} 1-0

[Event "Reykjavik Open 2022"]
[Site "Reykjavik"]
[Date "2022.04.08"]
[Round "4.38"]
[White "Collins, Adam"]
[Black "Sarkar, Justin"]
[Result "0-1"]
[ECO "C96"]
[WhiteElo "1984"]
[BlackElo "2314"]
[Annotator "ChessBase"]
[PlyCount "78"]
[EventDate "2022.04.06"]
[EventCountry "ISL"]
[SourceTitle "playchess.com"]
[Source "ChessBase"]
[SourceQuality "1"]
[TimeControl "40/5400+30:1800+30"]

1. e4 {[%emt 0:00:04]} e5 {[%emt 0:00:39]} 2. Nf3 {[%emt 0:00:04]} Nc6 {[%emt 0:00:10]} 3. Bb5 {[%emt 0:00:03]} a6 {[%emt 0:00:14]} 4. Ba4 {[%emt 0:00:03]} Nf6 {[%emt 0:00:28]} 5. O-O {[%emt 0:00:06]} Be7 {[%emt 0:00:47]} 6. Re1 {[%emt 0:00:21]} b5 {[%emt 0:00:07]} 7. Bb3 {[%emt 0:00:03]} d6 {[%emt 0:00:14]} 8. c3 {[%emt 0:00:02]} O-O {[%emt 0:00:37]} 9. h3 {[%emt 0:00:02]} Na5 {[%emt 0:01:15]} 10. Bc2 {[%emt 0:00:04]} c5 {[%emt 0:00:09]} 11. d4 {[%emt 0:00:03]} Nd7 {[%emt 0:01:25]} 12. a4 {[%emt 0:00:55]} Rb8 {[%emt 0:06:35]} 13. Nbd2 {[%emt 0:11:39]} exd4 {[%emt 0:00:31]} 14. cxd4 {[%emt 0:00:13]} Nc6 {[%emt 0:00:09]} 15. Nf1 {[%emt 0:16:00]} cxd4 {[%emt 0:02:41]} 16. Nxd4 {[%emt 0:01:27]} Nxd4 {[%emt 0:00:09]} 17. Qxd4 {[%emt 0:00:18]} Ne5 {[%emt 0:00:04]} 18. axb5 {[%emt 0:21:31]} axb5 {[%emt 0:00:22]} 19. Qd1 {[%emt 0:05:14]} Be6 {[%emt 0:01:16]} 20. Ne3 {[%emt 0:02:12]} Nc4 {[%emt 0:01:50]} 21. b3 {[%emt 0:08:29]} Bf6 {[%emt 0:03:03]} 22. Ra6 {[%emt 0:03:22]} Qc8 {[%emt 0:04:50]} 23. Ra2 {[%emt 0:02:14]} Nxe3 {[%emt 0:00:16]} 24. Bxe3 {[%emt 0:00:18]} Qc3 {[%emt 0:02:14]} 25. Bd2 {[%emt 0:05:46]} Qc6 {[%emt 0:07:20]} 26. Bb4 {[%emt 0:02:20]} Rfd8 {[%emt 0:04:04]} 27. Qd2 {[%emt 0:02:16]} g6 {[%emt 0:00:35]} 28. Rd1 {[%emt 0:02:55]} Ra8 {[%emt 0:03:18]} 29. Ra4 {[%emt 0:02:30]} Rdc8 30. Rxa8 Rxa8 {[%emt 0:00:36]} 31. Bxd6 {[%emt 0:07:08]} Rd8 {[%emt 0:07:21]} 32. f4 {[%emt 0:04:19]} Rxd6 {[%emt 0:00:53]} 33. Qxd6 {[%emt 0:00:03]} Qxc2 {[%emt 0:00:08]} 34. f5 {[%emt 0:01:23]} Bxb3 {[%emt 0:01:28]} 35. Rf1 {[%emt 0:00:45]} Qc3 {[%emt 0:03:23]} 36. Qb8+ {[%emt 0:02:12]} Kg7 {[%emt 0:00:08]} 37. fxg6 {[%emt 0:00:20]} hxg6 {[%emt 0:02:22]} 38. Rf3 {[%emt 0:01:26]} Bd4+ {[%emt 0:00:13]} 39. Kh1 {[%emt 0:00:44]} Qa1+ {[%emt 0:00:06]} 0-1

[Event "Reykjavik Open 2022"]
[Site "Reykjavik"]
[Date "2022.04.08"]
[Round "4.39"]
[White "Balzer, Lars"]
[Black "Kolbus, Dietmar"]
[Result "1/2-1/2"]
[ECO "B26"]
[WhiteElo "2018"]
[BlackElo "2305"]
[Annotator "RC"]
[PlyCount "102"]
[EventDate "2022.04.06"]
[EventCountry "ISL"]
[SourceTitle "playchess.com"]
[Source "ChessBase"]
[SourceQuality "1"]
[TimeControl "40/5400+30:1800+30"]

1. e4 {[%emt 0:00:03]} c5 {[%emt 0:00:09]} 2. Nc3 {[%emt 0:00:12]} Nc6 {[%emt 0:00:09]} 3. g3 {[%emt 0:00:28]} g6 {[%emt 0:00:21]} 4. Bg2 {[%emt 0:00:06]} Bg7 {[%emt 0:00:05]} 5. d3 {[%emt 0:00:23]} d6 {[%emt 0:01:36]} 6. Be3 {[%emt 0:00:21]} Nf6 {[%emt 0:01:10]} 7. h3 {[%emt 0:02:15]} e5 {[%emt 0:06:10]} 8. Qd2 {[%emt 0:01:51]} h6 {[%emt 0:00:24]} 9. f4 {[%emt 0:08:34]} Nd4 {[%emt 0:01:44]} 10. Nce2 {[%emt 0:04:47]} Qe7 {[%emt 0:06:07]} 11. c3 {[%emt 0:00:35]} Nc6 {[%emt 0:04:45]} 12. c4 {[%emt 0:17:07]} Nd4 {[%emt 0:06:22]} 13. g4 {[%emt 0:12:00]} Nd7 {[%emt 0:03:24]} 14. f5 {[%emt 0:04:17]} Bf6 {[%emt 0:10:49]} 15. Nf3 {[%emt 0:03:30]} Nxf3+ {[%emt 0:02:36]} 16. Bxf3 {[%emt 0:00:02]} Bh4+ {[%emt 0:00:11]} 17. Kf1 {[%emt 0:03:26]} Bg5 {[%emt 0:10:32]} 18. Nc3 {[%emt 0:01:05]} Bxe3 {[%emt 0:08:08]} 19. Qxe3 {[%emt 0:00:02]} Qh4 {[%emt 0:01:08]} 20. Nd5 {[%emt 0:02:34]} Kd8 {[%emt 0:03:28]} 21. Qf2 {[%emt 0:08:07]} Qxf2+ {[%emt 0:00:20]} 22. Kxf2 {[%emt 0:00:01]} b6 {[%emt 0:00:35]} 23. h4 {[%emt 0:05:59]} Bb7 {[%emt 0:00:06]} 24. Ne3 {[%emt 0:01:05]} Kc7 {[%emt 0:02:43]} 25. g5 {[%emt 0:01:57]} h5 {[%emt 0:04:50]} 26. Bg2 {[%emt 0:01:43]} Raf8 {[%emt 0:00:16]} 27. Ke2 {[%emt 0:00:42]} Nb8 {[%emt 0:03:24]} 28. Raf1 {[%emt 0:07:55]} Kd8 {[%emt 0:00:08]} 29. Rf2 {[%emt 0:02:33]} Nc6 {[%emt 0:01:13]} 30. Rhf1 {[%emt 0:00:15]} Nd4+ {[%emt 0:01:11]} 31. Kd2 {[%emt 0:00:17]} Ke7 {[%emt 0:06:06]} 32. Nc2 {[%emt 0:02:43]} gxf5 {[%emt 0:07:24]} 33. Nxd4 {[%emt 0:01:58]} cxd4 {[%emt 0:00:05]} 34. Rxf5 {[%emt 0:01:41]} Bc8 {[%emt 0:00:33]} 35. Rf6 {[%emt 0:00:11]} Be6 {[%emt 0:00:04]} 36. Kc2 {[%emt 0:06:01]} Rfg8 {[%emt 0:01:13]} 37. b4 {[%emt 0:01:01]} Rg6 {[%emt 0:00:19]} 38. a4 {[%emt 0:00:50]} Rhg8 {[%emt 0:00:22]} 39. Kb3 {[%emt 0:00:38]} Rxf6 {[%emt 0:00:26]} 40. Rxf6 {[%emt 0:00:00]} Rg6 {[%emt 0:00:00]} 41. Rxg6 {[%emt 0:05:42]} fxg6 {[%emt 0:00:22]} 42. Kc2 {[%emt 0:02:36]} Bg4 {[%emt 0:00:23]} 43. Kd2 {[%emt 0:01:03]} Kd7 {[%emt 0:00:10]} 44. b5 {[%emt 0:01:40]} Kc7 {[%emt 0:00:26]} 45. Kc2 {[%emt 0:01:09]} Kb7 {[%emt 0:00:08]} 46. Kd2 {[%emt 0:00:15]} a6 {[%emt 0:00:18]} 47. Kc2 {[%emt 0:00:23]} Ka7 {[%emt 0:00:46]} 48. Kd2 {[%emt 0:00:10]} Kb8 {[%emt 0:00:37]} 49. Kc2 {[%emt 0:00:13]} a5 {[%emt 0:01:16]} 50. Kd2 {[%emt 0:00:23]} Kc7 {[%emt 0:00:06]} 51. Kc2 {[%emt 0:00:38]} Kd8 {[%emt 0:00:09]} 1/2-1/2

[Event "Reykjavik Open 2022"]
[Site "Reykjavik"]
[Date "2022.04.08"]
[Round "4.41"]
[White "George Samir, David"]
[Black "Minko, Dmitry"]
[Result "0-1"]
[ECO "C54"]
[WhiteElo "2032"]
[BlackElo "2298"]
[Annotator "RC"]
[PlyCount "66"]
[EventDate "2022.04.06"]
[EventCountry "ISL"]
[SourceTitle "playchess.com"]
[Source "ChessBase"]
[SourceQuality "1"]
[TimeControl "40/5400+30:1800+30"]

1. e4 {[%emt 0:00:02]} e5 {[%emt 0:00:27]} 2. Nf3 {[%emt 0:00:15]} Nc6 {[%emt 0:00:17]} 3. Bc4 {[%emt 0:00:22]} Bc5 {[%emt 0:00:05]} 4. O-O {[%emt 0:00:36]} Nf6 {[%emt 0:04:01]} 5. d3 {[%emt 0:01:04]} d6 {[%emt 0:00:06]} 6. c3 {[%emt 0:00:18]} a6 {[%emt 0:01:45]} 7. a4 {[%emt 0:00:19]} h6 {[%emt 0:03:19]} 8. Re1 {[%emt 0:00:47]} O-O {[%emt 0:01:57]} 9. Nbd2 {[%emt 0:04:46]} Ba7 {[%emt 0:09:32]} 10. h3 {[%emt 0:02:09]} Re8 {[%emt 0:00:27]} 11. b4 {[%emt 0:04:51]} Be6 {[%emt 0:02:19]} 12. Bxe6 {[%emt 0:00:18]} Rxe6 {[%emt 0:00:07]} 13. Bb2 {[%emt 0:00:24]} Nh5 {[%emt 0:05:57]} 14. b5 {[%emt 0:04:05]} Ne7 {[%emt 0:04:54]} 15. d4 {[%emt 0:03:12]} Nf4 {[%emt 0:01:22]} 16. Nf1 {[%emt 0:00:47]} Neg6 {[%emt 0:06:47]} 17. Ng3 {[%emt 0:05:07]} d5 {[%emt 0:09:08]} 18. c4 {[%emt 0:06:34]} dxc4 {[%emt 0:01:06]} 19. d5 {[%emt 0:01:29]} Re8 {[%emt 0:00:45]} 20. Bc3 {[%emt 0:04:41]} Nd3 {[%emt 0:11:05]} 21. Rf1 {[%emt 0:00:43]} axb5 {[%emt 0:02:29]} 22. axb5 {[%emt 0:00:28]} c6 {[%emt 0:00:13]} 23. bxc6 {[%emt 0:05:47]} bxc6 {[%emt 0:00:04]} 24. dxc6 {[%emt 0:00:05]} Qb6 {[%emt 0:00:28]} 25. Qc2 {[%emt 0:05:22]} Qxc6 {[%emt 0:00:59]} 26. Ra5 {[%emt 0:05:09]} Bc5 {[%emt 0:11:33]} 27. Qa2 {[%emt 0:05:48]} Rxa5 {[%emt 0:00:30]} 28. Bxa5 {[%emt 0:00:22]} Ra8 {[%emt 0:00:18]} 29. Nd2 {[%emt 0:01:23]} Qe6 {[%emt 0:02:14]} 30. Qxc4 {[%emt 0:00:58]} Bxf2+ {[%emt 0:01:22]} 31. Rxf2 {[%emt 0:03:32]} Nxf2 {[%emt 0:01:10]} 32. Qc3 {[%emt 0:05:15]} Nd1 {[%emt 0:05:51]} 33. Qd3 {[%emt 0:00:03]} Nf4 {[%emt 0:00:25]} 0-1

[Event "Reykjavik Open 2022"]
[Site "Reykjavik"]
[Date "2022.04.08"]
[Round "4.42"]
[White "Johannsdottir, Johanna Bjorg"]
[Black "Large, Peter G"]
[Result "0-1"]
[ECO "C50"]
[WhiteElo "1946"]
[BlackElo "2335"]
[Annotator "RC"]
[PlyCount "82"]
[EventDate "2022.04.06"]
[EventCountry "ISL"]
[SourceTitle "playchess.com"]
[Source "ChessBase"]
[SourceQuality "1"]
[TimeControl "40/5400+30:1800+30"]

1. e4 {[%emt 0:00:03]} e5 {[%emt 0:01:37]} 2. Nf3 {[%emt 0:00:06]} Nc6 {[%emt 0:00:05]} 3. Bc4 {[%emt 0:00:03]} g6 {[%emt 0:00:32]} 4. c3 {[%emt 0:02:03]} d6 {[%emt 0:00:32]} 5. d4 {[%emt 0:02:02]} Qe7 {[%emt 0:07:47]} 6. Ng5 {[%emt 0:05:35]} Nh6 {[%emt 0:03:40]} 7. O-O {[%emt 0:04:05]} Bg7 {[%emt 0:03:25]} 8. h3 {[%emt 0:13:03]} f6 {[%emt 0:08:30]} 9. Nf3 {[%emt 0:06:00]} Nf7 {[%emt 0:00:38]} 10. dxe5 {[%emt 0:01:50]} fxe5 {[%emt 0:02:03]} 11. Qd5 {[%emt 0:02:03]} Ncd8 {[%emt 0:01:52]} 12. Be3 {[%emt 0:02:54]} Ne6 {[%emt 0:13:03]} 13. Bb5+ {[%emt 0:02:34]} Kf8 {[%emt 0:00:29]} 14. Ba4 {[%emt 0:02:32]} Bh6 {[%emt 0:04:01]} 15. Nbd2 {[%emt 0:08:55]} Kg7 {[%emt 0:00:21]} 16. b4 {[%emt 0:07:33]} Rf8 {[%emt 0:03:28]} 17. Nh2 {[%emt 0:03:16]} Nf4 {[%emt 0:03:14]} 18. Bxf4 {[%emt 0:00:55]} Bxf4 {[%emt 0:00:10]} 19. Bd1 {[%emt 0:05:18]} a5 {[%emt 0:09:43]} 20. Nc4 {[%emt 0:02:42]} axb4 {[%emt 0:01:07]} 21. cxb4 {[%emt 0:00:08]} Ng5 {[%emt 0:04:15]} 22. Qd3 {[%emt 0:05:45]} Bxh2+ {[%emt 0:07:12]} 23. Kxh2 {[%emt 0:00:05]} Rf4 {[%emt 0:00:57]} 24. Ne3 {[%emt 0:05:50]} Rxe4 {[%emt 0:02:59]} 25. Nd5 {[%emt 0:00:35]} Qf7 {[%emt 0:02:51]} 26. Qg3 {[%emt 0:03:11]} Ne6 {[%emt 0:10:38]} 27. Bb3 {[%emt 0:03:49]} Nd4 {[%emt 0:01:57]} 28. f3 {[%emt 0:07:13]} Re2 {[%emt 0:00:36]} 29. Bc4 {[%emt 0:01:23]} Rc2 {[%emt 0:02:30]} 30. Rac1 {[%emt 0:00:59]} Be6 {[%emt 0:02:37]} 31. Rxc2 {[%emt 0:02:09]} Nxc2 {[%emt 0:00:03]} 32. Qf2 {[%emt 0:01:16]} Nd4 {[%emt 0:01:34]} 33. Nb6 {[%emt 0:00:28]} cxb6 {[%emt 0:00:23]} 34. Bxe6 {[%emt 0:00:19]} Qxe6 {[%emt 0:00:07]} 35. Rc1 {[%emt 0:00:10]} Qf7 {[%emt 0:00:34]} 36. Kh1 {[%emt 0:00:36]} Rxa2 {[%emt 0:00:11]} 37. Qh4 {[%emt 0:00:11]} Rc2 {[%emt 0:01:53]} 38. Rf1 {[%emt 0:00:58]} Nf5 {[%emt 0:00:35]} 39. Qe1 {[%emt 0:00:22]} Re2 {[%emt 0:00:31]} 40. Qd1 {[%emt 0:00:00]} Ng3+ {[%emt 0:00:00]} 41. Kg1 {[%emt 0:00:38]} Qa2 {[%emt 0:01:08]} 0-1

[Event "Reykjavik Open 2022"]
[Site "Reykjavik"]
[Date "2022.04.08"]
[Round "4.43"]
[White "Doluhanova, Evgeniya"]
[Black "Baecker, Niko"]
[Result "1-0"]
[ECO "B31"]
[WhiteElo "2255"]
[BlackElo "1843"]
[Annotator "RC"]
[PlyCount "41"]
[EventDate "2022.04.06"]
[EventCountry "ISL"]
[SourceTitle "playchess.com"]
[Source "ChessBase"]
[SourceQuality "1"]
[TimeControl "40/5400+30:1800+30"]

1. e4 {[%emt 0:05:02]} c5 {[%emt 0:00:18]} 2. Nf3 {[%emt 0:00:25]} Nc6 {[%emt 0:00:13]} 3. Bb5 {[%emt 0:00:06]} g6 {[%emt 0:01:35]} 4. O-O {[%emt 0:00:17]} Bg7 {[%emt 0:00:09]} 5. Re1 {[%emt 0:01:49]} b6 {[%emt 0:05:48]} 6. c3 {[%emt 0:00:23]} Bb7 {[%emt 0:05:33]} 7. d4 {[%emt 0:01:01]} cxd4 {[%emt 0:00:08]} 8. cxd4 {[%emt 0:00:04]} Qc7 {[%emt 0:17:14]} 9. Nc3 {[%emt 0:02:19]} e5 {[%emt 0:07:43]} 10. Nd5 {[%emt 0:01:32]} Qd6 {[%emt 0:01:21]} 11. dxe5 {[%emt 0:00:43]} Nxe5 {[%emt 0:00:49]} 12. Bf4 {[%emt 0:00:31]} Kf8 {[%emt 0:18:14]} 13. Rc1 {[%emt 0:06:07]} Nxf3+ {[%emt 0:04:42]} 14. Qxf3 {[%emt 0:00:26]} Be5 {[%emt 0:00:11]} 15. Bxe5 {[%emt 0:02:02]} Qxe5 {[%emt 0:00:07]} 16. Bxd7 {[%emt 0:00:35]} Rd8 {[%emt 0:08:14]} 17. Ba4 {[%emt 0:03:10]} Kg7 {[%emt 0:00:31]} 18. Bb3 {[%emt 0:00:32]} Ne7 {[%emt 0:03:27]} 19. Nxe7 {[%emt 0:03:29]} Qxe7 {[%emt 0:00:06]} 20. Qc3+ {[%emt 0:00:08]} Kf8 {[%emt 0:11:42]} 21. Qxh8# {[%emt 0:00:53]} 1-0

[Event "Reykjavik Open 2022"]
[Site "Reykjavik"]
[Date "2022.04.08"]
[Round "4.44"]
[White "Tirziman, Rudolf"]
[Black "Valkama, Eero"]
[Result "1/2-1/2"]
[ECO "E15"]
[WhiteElo "1963"]
[BlackElo "2244"]
[Annotator "RC"]
[PlyCount "105"]
[EventDate "2022.04.06"]
[EventCountry "ISL"]
[SourceTitle "playchess.com"]
[Source "ChessBase"]
[SourceQuality "1"]
[TimeControl "40/5400+30:1800+30"]

1. d4 {[%emt 0:10:40]} Nf6 {[%emt 0:00:05]} 2. c4 {[%emt 0:00:13]} e6 {[%emt 0:00:07]} 3. Nf3 {[%emt 0:00:20]} b6 {[%emt 0:00:29]} 4. g3 {[%emt 0:00:25]} Ba6 {[%emt 0:03:19]} 5. b3 {[%emt 0:00:42]} b5 {[%emt 0:00:41]} 6. cxb5 {[%emt 0:12:58]} Bxb5 {[%emt 0:00:46]} 7. Bg2 {[%emt 0:00:26]} d5 {[%emt 0:00:07]} 8. O-O {[%emt 0:01:11]} Nbd7 {[%emt 0:03:25]} 9. Nc3 {[%emt 0:02:13]} Ba6 {[%emt 0:00:06]} 10. Bb2 {[%emt 0:04:40]} Be7 {[%emt 0:10:39]} 11. Rc1 {[%emt 0:01:37]} O-O {[%emt 0:09:52]} 12. Re1 {[%emt 0:02:18]} c5 {[%emt 0:02:21]} 13. e4 {[%emt 0:16:11]} Nxe4 {[%emt 0:02:58]} 14. Nxe4 {[%emt 0:00:16]} dxe4 {[%emt 0:00:04]} 15. Rxe4 {[%emt 0:12:00]} Bb7 {[%emt 0:14:41]} 16. Re2 {[%emt 0:02:04]} Rc8 {[%emt 0:03:35]} 17. dxc5 {[%emt 0:17:42]} Bxc5 {[%emt 0:31:12]} 18. Rd2 {[%emt 0:01:06]} Bd5 {[%emt 0:02:05]} 19. Ne5 {[%emt 0:00:55]} Nxe5 {[%emt 0:09:19]} 20. Bxd5 {[%emt 0:05:14]} exd5 {[%emt 0:01:35]} 21. Bxe5 {[%emt 0:02:11]} Qb6 {[%emt 0:02:01]} 22. Rdc2 {[%emt 0:02:16]} Qe6 {[%emt 0:01:09]} 23. Rxc5 {[%emt 0:00:21]} Rxc5 {[%emt 0:00:04]} 24. Rxc5 {[%emt 0:00:07]} Qxe5 {[%emt 0:00:03]} 25. Rxd5 {[%emt 0:00:33]} Qe7 {[%emt 0:00:07]} 26. h4 {[%emt 0:02:49]} h6 {[%emt 0:00:40]} 27. Qd2 {[%emt 0:00:35]} Re8 {[%emt 0:00:14]} 28. Rd7 {[%emt 0:00:37]} Qa3 {[%emt 0:00:58]} 29. Qf4 {[%emt 0:00:56]} Rf8 {[%emt 0:00:07]} 30. Qd2 {[%emt 0:00:33]} Re8 {[%emt 0:00:05]} 31. Rd8 {[%emt 0:00:31]} Rxd8 {[%emt 0:00:12]} 32. Qxd8+ {[%emt 0:00:05]} Kh7 {[%emt 0:00:04]} 33. Qd3+ {[%emt 0:00:42]} g6 {[%emt 0:00:28]} 34. Qe2 {[%emt 0:00:57]} h5 {[%emt 0:00:28]} 35. Kg2 {[%emt 0:00:24]} Kg8 {[%emt 0:00:28]} 36. Qd2 {[%emt 0:00:39]} Kg7 {[%emt 0:00:32]} 37. Qd4+ {[%emt 0:00:32]} Kf8 {[%emt 0:01:23]} 38. Qd2 {[%emt 0:00:52]} a5 {[%emt 0:01:34]} 39. Qd8+ {[%emt 0:00:11]} Kg7 {[%emt 0:00:06]} 40. Qd4+ {[%emt 0:00:00]} Kf8 {[%emt 0:00:00]} 41. Qd2 {[%emt 0:07:47]} Kg7 {[%emt 0:01:45]} 42. Kf3 {[%emt 0:03:13]} Kf8 {[%emt 0:02:00]} 43. Ke2 {[%emt 0:01:11]} Kg7 {[%emt 0:01:28]} 44. Qd4+ {[%emt 0:02:34]} Kf8 {[%emt 0:00:31]} 45. Qa4 {[%emt 0:00:30]} Qb2+ {[%emt 0:02:22]} 46. Kf3 {[%emt 0:00:34]} Qc3+ {[%emt 0:00:05]} 47. Kg2 {[%emt 0:00:34]} Qc5 {[%emt 0:00:12]} 48. Qe4 {[%emt 0:07:43]} Qa3 {[%emt 0:00:24]} 49. Qe2 {[%emt 0:02:04]} Kg7 {[%emt 0:00:06]} 50. f3 {[%emt 0:00:54]} Kf8 {[%emt 0:00:42]} 51. g4 {[%emt 0:00:32]} hxg4 {[%emt 0:00:33]} 52. fxg4 {[%emt 0:00:05]} Kg7 {[%emt 0:00:15]} 53. Qe5+ {[%emt 0:04:26]} 1/2-1/2

[Event "Reykjavik Open 2022"]
[Site "Reykjavik"]
[Date "2022.04.08"]
[Round "4.45"]
[White "Sowray, Peter J"]
[Black "Sarkisian, Arman"]
[Result "1-0"]
[ECO "E24"]
[WhiteElo "2226"]
[BlackElo "1806"]
[Annotator "RC"]
[PlyCount "59"]
[EventDate "2022.04.06"]
[EventCountry "ISL"]
[SourceTitle "playchess.com"]
[Source "ChessBase"]
[SourceQuality "1"]
[TimeControl "40/5400+30:1800+30"]

1. d4 {[%emt 0:00:05]} Nf6 {[%emt 0:00:04]} 2. c4 {[%emt 0:00:09]} e6 {[%emt 0:00:03]} 3. Nc3 {[%emt 0:00:08]} Bb4 {[%emt 0:00:07]} 4. a3 {[%emt 0:00:06]} Bxc3+ {[%emt 0:00:55]} 5. bxc3 {[%emt 0:00:03]} c5 {[%emt 0:01:08]} 6. f3 {[%emt 0:00:38]} d6 {[%emt 0:00:53]} 7. e4 {[%emt 0:00:38]} Nc6 {[%emt 0:00:09]} 8. Ne2 {[%emt 0:03:54]} e5 {[%emt 0:00:38]} 9. d5 {[%emt 0:02:04]} Na5 {[%emt 0:11:04]} 10. Bg5 {[%emt 0:01:05]} Qd7 {[%emt 0:01:37]} 11. Ng3 {[%emt 0:07:57]} b6 {[%emt 0:00:12]} 12. Bxf6 {[%emt 0:13:54]} gxf6 {[%emt 0:00:13]} 13. Nh5 {[%emt 0:00:06]} Ke7 {[%emt 0:01:30]} 14. Bd3 {[%emt 0:07:55]} Ba6 {[%emt 0:03:56]} 15. O-O {[%emt 0:01:32]} Rag8 {[%emt 0:02:29]} 16. Ra2 {[%emt 0:03:33]} Bxc4 {[%emt 0:13:12]} 17. Bxc4 {[%emt 0:06:06]} Nxc4 {[%emt 0:00:12]} 18. Qe2 {[%emt 0:00:18]} Na5 {[%emt 0:07:37]} 19. f4 {[%emt 0:05:18]} Rg6 {[%emt 0:07:57]} 20. Qf3 {[%emt 0:06:02]} Qg4 {[%emt 0:25:34]} 21. fxe5 {[%emt 0:01:44]} dxe5 {[%emt 0:03:53]} 22. d6+ {[%emt 0:17:14]} Kxd6 {[%emt 0:02:00]} 23. Qd3+ {[%emt 0:00:44]} Ke7 {[%emt 0:00:57]} 24. Rd2 {[%emt 0:01:39]} Nb7 {[%emt 0:05:18]} 25. Ng3 {[%emt 0:02:29]} Rd8 {[%emt 0:02:36]} 26. Nf5+ {[%emt 0:01:30]} Ke8 {[%emt 0:02:10]} 27. Qb5+ {[%emt 0:01:21]} Kf8 {[%emt 0:00:07]} 28. Rxd8+ {[%emt 0:03:59]} Nxd8 {[%emt 0:00:05]} 29. g3 {[%emt 0:00:02]} Qxe4 {[%emt 0:01:23]} 30. Qd7 {[%emt 0:00:57]} 1-0

[Event "Reykjavik Open 2022"]
[Site "Reykjavik"]
[Date "2022.04.08"]
[Round "4.46"]
[White "Ragnarsson, Johann"]
[Black "Mahitosh Dey"]
[Result "1/2-1/2"]
[ECO "D31"]
[WhiteElo "1919"]
[BlackElo "2176"]
[Annotator "RC"]
[PlyCount "75"]
[EventDate "2022.04.06"]
[EventCountry "ISL"]
[SourceTitle "playchess.com"]
[Source "ChessBase"]
[SourceQuality "1"]
[TimeControl "40/5400+30:1800+30"]

1. d4 {[%emt 0:00:03]} d5 {[%emt 0:00:37]} 2. c4 {[%emt 0:00:09]} e6 {[%emt 0:00:07]} 3. Nc3 {[%emt 0:00:45]} a6 {[%emt 0:00:05]} 4. cxd5 {[%emt 0:00:18]} exd5 {[%emt 0:00:04]} 5. Bf4 {[%emt 0:00:44]} c6 {[%emt 0:00:24]} 6. e3 {[%emt 0:00:08]} Bd6 {[%emt 0:00:06]} 7. Bxd6 {[%emt 0:02:38]} Qxd6 {[%emt 0:00:06]} 8. Bd3 {[%emt 0:00:13]} Ne7 {[%emt 0:00:07]} 9. Nge2 {[%emt 0:03:42]} Bf5 {[%emt 0:00:35]} 10. O-O {[%emt 0:00:49]} O-O {[%emt 0:00:17]} 11. f3 {[%emt 0:06:39]} Bxd3 {[%emt 0:00:40]} 12. Qxd3 {[%emt 0:00:08]} Nd7 {[%emt 0:01:23]} 13. e4 {[%emt 0:03:17]} Rae8 {[%emt 0:00:09]} 14. e5 {[%emt 0:08:17]} Qg6 {[%emt 0:00:21]} 15. Qxg6 {[%emt 0:01:18]} Nxg6 {[%emt 0:00:07]} 16. b4 {[%emt 0:00:12]} Ne7 {[%emt 0:02:07]} 17. a4 {[%emt 0:07:10]} Ra8 {[%emt 0:00:04]} 18. b5 {[%emt 0:00:36]} cxb5 {[%emt 0:00:04]} 19. axb5 {[%emt 0:00:09]} a5 {[%emt 0:00:02]} 20. Na4 {[%emt 0:02:27]} Rfc8 {[%emt 0:00:12]} 21. Rfc1 {[%emt 0:00:35]} b6 {[%emt 0:03:06]} 22. Rxc8+ {[%emt 0:02:11]} Rxc8 {[%emt 0:00:09]} 23. Rc1 {[%emt 0:00:07]} Rxc1+ {[%emt 0:02:07]} 24. Nxc1 {[%emt 0:00:08]} Nf5 {[%emt 0:03:01]} 25. Nb3 {[%emt 0:07:32]} g5 {[%emt 0:00:18]} 26. Kf2 {[%emt 0:01:04]} Kf8 {[%emt 0:00:09]} 27. g3 {[%emt 0:14:53]} Ke7 {[%emt 0:00:13]} 28. Ke2 {[%emt 0:00:18]} Ke6 {[%emt 0:00:41]} 29. Kd3 {[%emt 0:00:27]} h5 {[%emt 0:00:25]} 30. Nd2 {[%emt 0:04:20]} h4 {[%emt 0:00:20]} 31. g4 {[%emt 0:00:06]} Ne7 {[%emt 0:00:22]} 32. Nf1 {[%emt 0:01:06]} Ng6 {[%emt 0:01:33]} 33. Ne3 {[%emt 0:00:20]} f6 {[%emt 0:00:26]} 34. exf6 {[%emt 0:01:10]} Nf4+ {[%emt 0:00:05]} 35. Kd2 {[%emt 0:01:18]} Kxf6 {[%emt 0:00:11]} 36. Nf5 {[%emt 0:00:50]} Ke6 {[%emt 0:01:37]} 37. Ng7+ {[%emt 0:00:35]} Kf7 {[%emt 0:00:22]} 38. Nf5 {[%emt 0:00:10]} 1/2-1/2